fUST/lending_fUST_20260523
["ID","MTS","AMOUNT","RATE_DAILY","PERIOD"]
[422831742,1779489935000,-500.0,8.219e-05,2]
[422831741,1779489935000,-657.8,8.219e-05,2]
[422831738,1779489935000,-500.0,8.219e-05,2]
[422831739,1779489935000,-500.0,8.219e-05,2]
[422831740,1779489935000,-500.0,8.219e-05,2]
[422831737,1779489935000,-500.0,8.219e-05,2]
[422831735,1779489935000,-509.59,8.219e-05,2]
[422831733,1779489935000,-723.55,8.219e-05,2]
[422831736,1779489935000,-699.54,8.219e-05,2]
[422831734,1779489935000,-657.59,8.219e-05,2]
[422831732,1779489935000,-500.0,8.219e-05,2]
[422831719,1779489935000,-500.0,8.218e-05,2]
[422831727,1779489935000,-505.03240158,8.219e-05,2]
[422831729,1779489935000,-500.0,8.219e-05,2]
[422831728,1779489935000,-640.63606105,8.219e-05,2]
[422831725,1779489935000,-3939.1914,8.219e-05,2]
[422831726,1779489935000,-500.0,8.219e-05,2]
[422831722,1779489935000,-500.0,8.219e-05,2]
[422831724,1779489935000,-500.0,8.219e-05,2]
[422831723,1779489935000,-500.0,8.219e-05,2]
[422831720,1779489935000,-500.0,8.218e-05,2]
[422831721,1779489935000,-500.0,8.219e-05,2]
[422831743,1779489935000,-500.0,8.219e-05,2]
[422831730,1779489935000,-869.6,8.219e-05,2]
[422831746,1779489935000,-500.0,8.219e-05,2]
[422831748,1779489935000,-500.0,8.219e-05,2]
[422831745,1779489935000,-500.0,8.219e-05,2]
[422831772,1779489935000,-500.0,8.219e-05,2]
[422831771,1779489935000,-415.10402669,8.219e-05,2]
[422831769,1779489935000,-500.0,8.219e-05,2]
[422831765,1779489935000,-500.0,8.219e-05,2]
[422831766,1779489935000,-500.0,8.219e-05,2]
[422831767,1779489935000,-606.6,8.219e-05,2]
[422831768,1779489935000,-500.0,8.219e-05,2]
[422831764,1779489935000,-1280.91,8.219e-05,2]
[422831763,1779489935000,-447.57880849,8.219e-05,2]
[422831761,1779489935000,-556.33,8.219e-05,2]
[422831760,1779489935000,-955.9,8.219e-05,2]
[422831762,1779489935000,-500.0,8.219e-05,2]
[422831744,1779489935000,-500.0,8.219e-05,2]
[422831759,1779489935000,-500.0,8.219e-05,2]
[422831758,1779489935000,-500.0,8.219e-05,2]
[422831770,1779489935000,-500.0,8.219e-05,2]
[422831747,1779489935000,-500.0,8.219e-05,2]
[422831750,1779489935000,-500.0,8.219e-05,2]
[422831752,1779489935000,-500.0,8.219e-05,2]
[422831749,1779489935000,-500.0,8.219e-05,2]
[422831754,1779489935000,-500.0,8.219e-05,2]
[422831753,1779489935000,-500.0,8.219e-05,2]
[422831756,1779489935000,-509.05,8.219e-05,2]
[422831757,1779489935000,-500.0,8.219e-05,2]
[422831755,1779489935000,-500.0,8.219e-05,2]
[422831751,1779489935000,-549.72,8.219e-05,2]
[422831782,1779489936000,-500.0,8.219e-05,2]
[422831786,1779489936000,-500.0,8.219e-05,2]
[422831787,1779489936000,-695.02,8.219e-05,2]
[422831783,1779489936000,-867.63,8.219e-05,2]
[422831780,1779489936000,-830.18,8.219e-05,2]
[422831785,1779489936000,-500.0,8.219e-05,2]
[422831784,1779489936000,-500.0,8.219e-05,2]
[422831776,1779489936000,-500.0,8.219e-05,2]
[422831777,1779489936000,-500.0,8.219e-05,2]
[422831778,1779489936000,-500.0,8.219e-05,2]
[422831779,1779489936000,-184.557292,8.219e-05,2]
[422831775,1779489936000,-500.0,8.219e-05,2]
[422831774,1779489936000,-500.0,8.219e-05,2]
[422831773,1779489936000,-500.0,8.219e-05,2]
[422831781,1779489936000,-526.28,8.219e-05,2]
[422831789,1779489936000,-151.0,8.219e-05,2]
[422831790,1779489936000,-151.0,8.219e-05,2]
[422831792,1779489936000,-500.0,8.219e-05,2]
[422831788,1779489936000,-151.0,8.219e-05,2]
[422831805,1779489936000,-810.17,8.219e-05,2]
[422831806,1779489936000,-500.0,8.219e-05,2]
[422831804,1779489936000,-500.0,8.219e-05,2]
[422831800,1779489936000,-500.0,8.219e-05,2]
[422831802,1779489936000,-3094.2895191,8.219e-05,2]
[422831803,1779489936000,-863.12,8.219e-05,2]
[422831801,1779489936000,-1422.8133,8.219e-05,2]
[422831807,1779489936000,-27.93432864,8.219e-05,2]
[422831797,1779489936000,-1023.21,8.219e-05,2]
[422831799,1779489936000,-500.0,8.219e-05,2]
[422831791,1779489936000,-151.0,8.219e-05,2]
[422831793,1779489936000,-501.26,8.219e-05,2]
[422831796,1779489936000,-500.0,8.219e-05,2]
[422831795,1779489936000,-1081.79,8.219e-05,2]
[422831798,1779489936000,-463.55544678,8.219e-05,2]
[422831794,1779489936000,-500.0,8.219e-05,2]
[422831863,1779490015000,-167.0,7.399e-05,2]
[422831862,1779490015000,-160.566907,7.277e-05,2]
[422831864,1779490016000,-159672.433093,7.4e-05,2]
[422831866,1779490053000,-11284.83609726,7.4e-05,2]
[422831908,1779490231000,-500.0,7.299e-05,2]
[422831921,1779490231000,-189.89523755,7.299e-05,2]
[422831916,1779490231000,-500.0,7.299e-05,2]
[422831919,1779490231000,-500.0,7.299e-05,2]
[422831917,1779490231000,-500.0,7.299e-05,2]
[422831897,1779490231000,-500.0,7.299e-05,2]
[422831903,1779490231000,-167.18749226,7.299e-05,2]
[422831901,1779490231000,-500.0,7.299e-05,2]
[422831895,1779490231000,-500.0,7.299e-05,2]
[422831893,1779490231000,-300.0,7.298e-05,2]
[422831905,1779490231000,-500.0,7.299e-05,2]
[422831899,1779490231000,-500.0,7.299e-05,2]
[422831906,1779490231000,-500.0,7.299e-05,2]
[422831912,1779490231000,-500.0,7.299e-05,2]
[422831939,1779490231000,-404.3325773,7.3e-05,2]
[422831941,1779490231000,-16402.85833347,7.3e-05,2]
[422831937,1779490231000,-500.0,7.299e-05,2]
[422831931,1779490231000,-500.0,7.299e-05,2]
[422831933,1779490231000,-450.0,7.299e-05,2]
[422831935,1779490231000,-500.0,7.299e-05,2]
[422831928,1779490231000,-500.0,7.299e-05,2]
[422831946,1779490231000,-6392.986062,7.3e-05,2]
[422831910,1779490231000,-380.37726922,7.299e-05,2]
[422831914,1779490231000,-500.0,7.299e-05,2]
[422831926,1779490231000,-504.36429454,7.299e-05,2]
[422831929,1779490231000,-500.0,7.299e-05,2]
[422831924,1779490231000,-500.0,7.299e-05,2]
[422832017,1779490237000,-26900.21952875,7.3e-05,2]
[422832015,1779490237000,-6874.6232826,7.3e-05,2]
[422832040,1779490238000,-27426.70612986,7.4e-05,2]
[422832035,1779490238000,-67831.68579561,7.3e-05,2]
[422832033,1779490238000,-4062.29922733,7.3e-05,2]
[422832037,1779490238000,-752972.50154355,7.4e-05,2]
[422832157,1779490240000,-9690.6447665,7.4e-05,2]
[422832167,1779490243000,-1891.275,7.4e-05,2]
[422832169,1779490243000,-521.79651373,7.4e-05,2]
[422832168,1779490243000,-2117.33197332,7.4e-05,2]
[422832173,1779490246000,-322.51414784,7.4e-05,2]
[422832172,1779490246000,-3780.0,7.4e-05,2]
[422832175,1779490248000,-1443.25030795,7.4e-05,2]
[422832176,1779490248000,-1644.11061509,7.4e-05,2]
[422832174,1779490248000,-11812.117684,7.4e-05,2]
[422832184,1779490741000,175.6005671,3.36e-05,2]
[422832217,1779491230000,-500.0,7.807e-05,2]
[422832218,1779491230000,-500.0,7.808e-05,2]
[422832215,1779491230000,-160.0,7.5e-05,2]
[422832216,1779491230000,-194.360437,7.604e-05,2]
[422832210,1779491230000,-300.0,7.482e-05,2]
[422832219,1779491230000,-309.481,7.914e-05,2]
[422832211,1779491230000,-161.72364698,7.483e-05,2]
[422832213,1779491230000,-160.0,7.483e-05,2]
[422832214,1779491230000,-766.56709688,7.5e-05,2]
[422832209,1779491230000,-154.0556038,7.389e-05,2]
[422832207,1779491230000,-444.0,7.388e-05,2]
[422832208,1779491230000,-3160.0306809,7.389e-05,2]
[422832206,1779491230000,-151.0,7.177e-05,2]
[422832205,1779491230000,-409.47098007,6.989e-05,2]
[422832204,1779491230000,-336.23511674,6.962e-05,2]
[422832203,1779491230000,-151.0,6.962e-05,2]
[422832212,1779491230000,-160.0,7.483e-05,2]
[422832220,1779491230000,-2203.0,7.914e-05,2]
[422832229,1779491230000,-500.0,8.067e-05,2]
[422832222,1779491230000,-647.0,7.914e-05,2]
[422832240,1779491230000,-599.74302393,8.067e-05,2]
[422832238,1779491230000,-500.0,8.067e-05,2]
[422832223,1779491230000,-185.0,7.914e-05,2]
[422832239,1779491230000,-500.0,8.067e-05,2]
[422832236,1779491230000,-500.0,8.067e-05,2]
[422832235,1779491230000,-592.24779441,8.067e-05,2]
[422832234,1779491230000,-500.0,8.067e-05,2]
[422832233,1779491230000,-500.0,8.067e-05,2]
[422832237,1779491230000,-500.0,8.067e-05,2]
[422832230,1779491230000,-500.0,8.067e-05,2]
[422832232,1779491230000,-500.0,8.067e-05,2]
[422832228,1779491230000,-500.0,8.067e-05,2]
[422832226,1779491230000,-500.0,8.067e-05,2]
[422832227,1779491230000,-500.0,8.067e-05,2]
[422832225,1779491230000,-500.0,8.067e-05,2]
[422832224,1779491230000,-443.0,7.914e-05,2]
[422832221,1779491230000,-1413.0,7.914e-05,2]
[422832231,1779491230000,-500.0,8.067e-05,2]
[422832251,1779491231000,-500.0,8.067e-05,2]
[422832249,1779491231000,-414.02249602,8.067e-05,2]
[422832248,1779491231000,-500.0,8.067e-05,2]
[422832250,1779491231000,-500.0,8.067e-05,2]
[422832253,1779491231000,-500.0,8.067e-05,2]
[422832244,1779491231000,-500.0,8.067e-05,2]
[422832243,1779491231000,-500.0,8.067e-05,2]
[422832246,1779491231000,-500.0,8.067e-05,2]
[422832245,1779491231000,-500.0,8.067e-05,2]
[422832241,1779491231000,-500.0,8.067e-05,2]
[422832242,1779491231000,-500.0,8.067e-05,2]
[422832247,1779491231000,-500.0,8.067e-05,2]
[422832254,1779491231000,-500.0,8.067e-05,2]
[422832261,1779491231000,-500.0,8.067e-05,2]
[422832255,1779491231000,-500.0,8.067e-05,2]
[422832258,1779491231000,-347.68359526,8.067e-05,2]
[422832256,1779491231000,-500.0,8.067e-05,2]
[422832257,1779491231000,-500.0,8.067e-05,2]
[422832259,1779491231000,-500.0,8.067e-05,2]
[422832260,1779491231000,-500.0,8.067e-05,2]
[422832262,1779491231000,-500.0,8.067e-05,2]
[422832264,1779491231000,-500.0,8.067e-05,2]
[422832263,1779491231000,-500.0,8.067e-05,2]
[422832265,1779491231000,-500.0,8.067e-05,2]
[422832267,1779491231000,-500.0,8.067e-05,2]
[422832266,1779491231000,-500.0,8.067e-05,2]
[422832268,1779491231000,-44968.12330642,8.068e-05,2]
[422832252,1779491231000,-439.86714138,8.067e-05,2]
[422832340,1779491432000,-433.45811007,7.303e-05,2]
[422832470,1779491438000,-585.9,8.219e-05,2]
[422832472,1779491438000,-1744.51,8.219e-05,2]
[422832460,1779491438000,-500.0,8.219e-05,2]
[422832474,1779491438000,-500.0,8.219e-05,2]
[422832462,1779491438000,-500.0,8.219e-05,2]
[422832478,1779491438000,-665.88,8.219e-05,2]
[422832476,1779491438000,-1904.65,8.219e-05,2]
[422832467,1779491438000,-703.56,8.219e-05,2]
[422832464,1779491438000,-1792.5,8.219e-05,2]
[422832482,1779491438000,-500.0,8.219e-05,2]
[422832480,1779491438000,-500.0,8.219e-05,2]
[422832484,1779491438000,-500.0,8.219e-05,2]
[422832505,1779491438000,-151.0,8.219e-05,2]
[422832486,1779491438000,-153.92658681,8.219e-05,2]
[422832492,1779491438000,-500.0,8.219e-05,2]
[422832490,1779491438000,-500.0,8.219e-05,2]
[422832494,1779491438000,-500.0,8.219e-05,2]
[422832503,1779491438000,-151.0,8.219e-05,2]
[422832500,1779491438000,-641.49,8.219e-05,2]
[422832458,1779491438000,-2582.2108,8.219e-05,2]
[422832502,1779491438000,-151.0,8.219e-05,2]
[422832498,1779491438000,-500.0,8.219e-05,2]
[422832496,1779491438000,-500.0,8.219e-05,2]
[422832508,1779491438000,-151.0,8.219e-05,2]
[422832510,1779491438000,-151.0,8.219e-05,2]
[422832488,1779491438000,-500.0,8.219e-05,2]
[422832454,1779491438000,-536.74855748,8.218e-05,2]
[422832436,1779491438000,-151.0,8.068e-05,2]
[422832452,1779491438000,-500.0,8.218e-05,2]
[422832399,1779491438000,-156.9011297,7.303e-05,2]
[422832401,1779491438000,-500.0,7.805e-05,2]
[422832397,1779491438000,-23.18520193,7.303e-05,2]
[422832403,1779491438000,-598.0,8e-05,2]
[422832405,1779491438000,-300.0,8.067e-05,2]
[422832409,1779491438000,-160.0,8.068e-05,2]
[422832407,1779491438000,-161.72364698,8.067e-05,2]
[422832411,1779491438000,-160.0,8.068e-05,2]
[422832417,1779491438000,-10030.57555677,8.068e-05,2]
[422832423,1779491438000,-157029.19213887,8.068e-05,2]
[422832420,1779491438000,-473.57376399,8.068e-05,2]
[422832415,1779491438000,-160.0,8.068e-05,2]
[422832456,1779491438000,-2582.2108,8.219e-05,2]
[422832414,1779491438000,-766.56709688,8.068e-05,2]
[422832428,1779491438000,-151.0,8.068e-05,2]
[422832430,1779491438000,-151.0,8.068e-05,2]
[422832438,1779491438000,-295.64460134,8.068e-05,2]
[422832440,1779491438000,-63458.2197958,8.119e-05,2]
[422832442,1779491438000,-456.6596809,8.125e-05,2]
[422832444,1779491438000,-178.22859509,8.214e-05,2]
[422832512,1779491438000,-151.0,8.219e-05,2]
[422832431,1779491438000,-151.0,8.068e-05,2]
[422832446,1779491438000,-501.19446224,8.214e-05,2]
[422832434,1779491438000,-151.0,8.068e-05,2]
[422832448,1779491438000,-537.6845,8.214e-05,2]
[422832450,1779491438000,-500.0,8.218e-05,2]
[422832425,1779491438000,-524.77514593,8.068e-05,2]
[422832514,1779491438000,-151.0,8.219e-05,2]
[422832465,1779491438000,-602.24,8.219e-05,2]
[422832516,1779491438000,-151.0,8.219e-05,2]
[422832562,1779491438000,-500.0,8.219e-05,2]
[422832571,1779491438000,-549.28,8.219e-05,2]
[422832567,1779491438000,-500.0,8.219e-05,2]
[422832563,1779491438000,-605.77,8.219e-05,2]
[422832566,1779491438000,-500.0,8.219e-05,2]
[422832564,1779491438000,-500.0,8.219e-05,2]
[422832568,1779491438000,-500.0,8.219e-05,2]
[422832570,1779491438000,-500.0,8.219e-05,2]
[422832573,1779491438000,-524.83666424,8.219e-05,2]
[422832581,1779491438000,-500.0,8.219e-05,2]
[422832583,1779491438000,-500.0,8.219e-05,2]
[422832572,1779491438000,-958.37,8.219e-05,2]
[422832574,1779491438000,-500.0,8.219e-05,2]
[422832575,1779491438000,-500.0,8.219e-05,2]
[422832579,1779491438000,-1107.59,8.219e-05,2]
[422832580,1779491438000,-680.13,8.219e-05,2]
[422832576,1779491438000,-1196.11,8.219e-05,2]
[422832577,1779491438000,-630.19,8.219e-05,2]
[422832578,1779491438000,-500.0,8.219e-05,2]
[422832584,1779491438000,-249.11504851,8.219e-05,2]
[422832585,1779491438000,-500.0,8.219e-05,2]
[422832587,1779491438000,-693.41,8.219e-05,2]
[422832588,1779491438000,-500.0,8.219e-05,2]
[422832589,1779491438000,-500.0,8.219e-05,2]
[422832586,1779491438000,-500.0,8.219e-05,2]
[422832522,1779491438000,-151.0,8.219e-05,2]
[422832590,1779491438000,-500.0,8.219e-05,2]
[422832565,1779491438000,-1018.16,8.219e-05,2]
[422832569,1779491438000,-500.0,8.219e-05,2]
[422832582,1779491438000,-715.34,8.219e-05,2]
[422832560,1779491438000,-604.64300515,8.219e-05,2]
[422832519,1779491438000,-151.0,8.219e-05,2]
[422832561,1779491438000,-752.22,8.219e-05,2]
[422832521,1779491438000,-151.0,8.219e-05,2]
[422832523,1779491438000,-956.51,8.219e-05,2]
[422832520,1779491438000,-151.0,8.219e-05,2]
[422832524,1779491438000,-251.336638,8.219e-05,2]
[422832526,1779491438000,-500.0,8.219e-05,2]
[422832533,1779491438000,-151.0,8.219e-05,2]
[422832528,1779491438000,-151.0,8.219e-05,2]
[422832532,1779491438000,-151.0,8.219e-05,2]
[422832530,1779491438000,-151.0,8.219e-05,2]
[422832535,1779491438000,-151.0,8.219e-05,2]
[422832539,1779491438000,-248.79699,8.219e-05,2]
[422832537,1779491438000,-151.0,8.219e-05,2]
[422832518,1779491438000,-151.0,8.219e-05,2]
[422832541,1779491438000,-151.0,8.219e-05,2]
[422832545,1779491438000,-500.0,8.219e-05,2]
[422832558,1779491438000,-500.0,8.219e-05,2]
[422832557,1779491438000,-1122.47,8.219e-05,2]
[422832550,1779491438000,-500.0,8.219e-05,2]
[422832553,1779491438000,-500.0,8.219e-05,2]
[422832548,1779491438000,-500.0,8.219e-05,2]
[422832559,1779491438000,-500.0,8.219e-05,2]
[422832551,1779491438000,-500.0,8.219e-05,2]
[422832547,1779491438000,-500.0,8.219e-05,2]
[422832555,1779491438000,-198.7747613,8.219e-05,2]
[422832543,1779491438000,-151.0,8.219e-05,2]
[422832632,1779491439000,-500.0,8.219e-05,2]
[422832620,1779491439000,-500.0,8.219e-05,2]
[422832624,1779491439000,-500.0,8.219e-05,2]
[422832622,1779491439000,-500.0,8.219e-05,2]
[422832623,1779491439000,-545.93,8.219e-05,2]
[422832628,1779491439000,-1310.87,8.219e-05,2]
[422832629,1779491439000,-500.0,8.219e-05,2]
[422832626,1779491439000,-500.0,8.219e-05,2]
[422832625,1779491439000,-500.0,8.219e-05,2]
[422832631,1779491439000,-500.0,8.219e-05,2]
[422832627,1779491439000,-500.0,8.219e-05,2]
[422832633,1779491439000,-500.0,8.219e-05,2]
[422832639,1779491439000,-1020.24,8.219e-05,2]
[422832634,1779491439000,-561.7226569,8.219e-05,2]
[422832635,1779491439000,-500.0,8.219e-05,2]
[422832636,1779491439000,-2313.73,8.219e-05,2]
[422832637,1779491439000,-500.0,8.219e-05,2]
[422832638,1779491439000,-500.0,8.219e-05,2]
[422832641,1779491439000,-500.0,8.219e-05,2]
[422832642,1779491439000,-4360.55,8.219e-05,2]
[422832643,1779491439000,-868.6,8.219e-05,2]
[422832640,1779491439000,-500.0,8.219e-05,2]
[422832644,1779491439000,-500.0,8.219e-05,2]
[422832646,1779491439000,-1213.77,8.219e-05,2]
[422832645,1779491439000,-500.0,8.219e-05,2]
[422832621,1779491439000,-500.0,8.219e-05,2]
[422832630,1779491439000,-631.85828626,8.219e-05,2]
[422832616,1779491439000,-533.15,8.219e-05,2]
[422832595,1779491439000,-500.0,8.219e-05,2]
[422832619,1779491439000,-500.0,8.219e-05,2]
[422832647,1779491439000,-581.33,8.219e-05,2]
[422832596,1779491439000,-500.0,8.219e-05,2]
[422832594,1779491439000,-375.71613703,8.219e-05,2]
[422832591,1779491439000,-848.97,8.219e-05,2]
[422832593,1779491439000,-500.0,8.219e-05,2]
[422832597,1779491439000,-885.67,8.219e-05,2]
[422832592,1779491439000,-500.0,8.219e-05,2]
[422832599,1779491439000,-500.0,8.219e-05,2]
[422832607,1779491439000,-500.0,8.219e-05,2]
[422832598,1779491439000,-500.0,8.219e-05,2]
[422832601,1779491439000,-1355.59,8.219e-05,2]
[422832602,1779491439000,-500.0,8.219e-05,2]
[422832612,1779491439000,-500.0,8.219e-05,2]
[422832600,1779491439000,-500.0,8.219e-05,2]
[422832605,1779491439000,-500.0,8.219e-05,2]
[422832603,1779491439000,-500.0,8.219e-05,2]
[422832606,1779491439000,-1486.39,8.219e-05,2]
[422832608,1779491439000,-500.0,8.219e-05,2]
[422832609,1779491439000,-500.0,8.219e-05,2]
[422832611,1779491439000,-500.0,8.219e-05,2]
[422832610,1779491439000,-630.4,8.219e-05,2]
[422832617,1779491439000,-500.0,8.219e-05,2]
[422832614,1779491439000,-526.82,8.219e-05,2]
[422832615,1779491439000,-500.0,8.219e-05,2]
[422832618,1779491439000,-2144.44,8.219e-05,2]
[422832613,1779491439000,-500.0,8.219e-05,2]
[422832604,1779491439000,-500.0,8.219e-05,2]
[422832648,1779491439000,-937.44,8.219e-05,2]
[422832700,1779491439000,-500.0,8.219e-05,2]
[422832649,1779491439000,-621.62,8.219e-05,2]
[422832698,1779491439000,-2316.58,8.219e-05,2]
[422832699,1779491439000,-1029.35,8.219e-05,2]
[422832701,1779491439000,-618.65,8.219e-05,2]
[422832684,1779491439000,-500.0,8.219e-05,2]
[422832681,1779491439000,-500.0,8.219e-05,2]
[422832686,1779491439000,-500.0,8.219e-05,2]
[422832702,1779491439000,-917.13,8.219e-05,2]
[422832703,1779491439000,-674.45,8.219e-05,2]
[422832689,1779491439000,-1692.4,8.219e-05,2]
[422832705,1779491439000,-1414.69,8.219e-05,2]
[422832708,1779491439000,-880.61,8.219e-05,2]
[422832704,1779491439000,-528.35,8.219e-05,2]
[422832696,1779491439000,-500.0,8.219e-05,2]
[422832716,1779491439000,-883.97,8.219e-05,2]
[422832707,1779491439000,-500.0,8.219e-05,2]
[422832709,1779491439000,-894.78,8.219e-05,2]
[422832713,1779491439000,-2543.62,8.219e-05,2]
[422832712,1779491439000,-808.12,8.219e-05,2]
[422832714,1779491439000,-996.38,8.219e-05,2]
[422832710,1779491439000,-1037.33,8.219e-05,2]
[422832711,1779491439000,-500.0,8.219e-05,2]
[422832717,1779491439000,-500.0,8.219e-05,2]
[422832719,1779491439000,-856.17,8.219e-05,2]
[422832720,1779491439000,-631.78,8.219e-05,2]
[422832718,1779491439000,-534.88,8.219e-05,2]
[422832650,1779491439000,-776.41,8.219e-05,2]
[422832706,1779491439000,-500.0,8.219e-05,2]
[422832690,1779491439000,-500.0,8.219e-05,2]
[422832715,1779491439000,-500.0,8.219e-05,2]
[422832694,1779491439000,-500.0,8.219e-05,2]
[422832652,1779491439000,-504.35,8.219e-05,2]
[422832692,1779491439000,-500.0,8.219e-05,2]
[422832663,1779491439000,-573.2,8.219e-05,2]
[422832664,1779491439000,-2086.61,8.219e-05,2]
[422832651,1779491439000,-500.0,8.219e-05,2]
[422832662,1779491439000,-500.0,8.219e-05,2]
[422832654,1779491439000,-500.0,8.219e-05,2]
[422832653,1779491439000,-500.0,8.219e-05,2]
[422832658,1779491439000,-500.0,8.219e-05,2]
[422832660,1779491439000,-500.0,8.219e-05,2]
[422832657,1779491439000,-728.32,8.219e-05,2]
[422832661,1779491439000,-500.0,8.219e-05,2]
[422832656,1779491439000,-500.0,8.219e-05,2]
[422832659,1779491439000,-1297.29,8.219e-05,2]
[422832655,1779491439000,-500.0,8.219e-05,2]
[422832678,1779491439000,-500.0,8.219e-05,2]
[422832679,1779491439000,-984.04,8.219e-05,2]
[422832666,1779491439000,-1084.74,8.219e-05,2]
[422832676,1779491439000,-500.0,8.219e-05,2]
[422832670,1779491439000,-800.93,8.219e-05,2]
[422832671,1779491439000,-500.0,8.219e-05,2]
[422832674,1779491439000,-931.32,8.219e-05,2]
[422832673,1779491439000,-500.0,8.219e-05,2]
[422832667,1779491439000,-666.06,8.219e-05,2]
[422832669,1779491439000,-337.41932552,8.219e-05,2]
[422832665,1779491439000,-1161.71,8.219e-05,2]
[422832672,1779491439000,-500.0,8.219e-05,2]
[422832668,1779491439000,-4026.24,8.219e-05,2]
[422832767,1779491440000,-504.53,8.219e-05,2]
[422832773,1779491440000,-500.0,8.219e-05,2]
[422832770,1779491440000,-1158.35,8.219e-05,2]
[422832762,1779491440000,-500.0,8.219e-05,2]
[422832772,1779491440000,-1214.82,8.219e-05,2]
[422832751,1779491440000,-935.98,8.219e-05,2]
[422832763,1779491440000,-500.0,8.219e-05,2]
[422832754,1779491440000,-500.0,8.219e-05,2]
[422832750,1779491440000,-500.0,8.219e-05,2]
[422832753,1779491440000,-500.0,8.219e-05,2]
[422832764,1779491440000,-500.0,8.219e-05,2]
[422832761,1779491440000,-676.22,8.219e-05,2]
[422832769,1779491440000,-500.0,8.219e-05,2]
[422832779,1779491440000,-500.0,8.219e-05,2]
[422832771,1779491440000,-500.0,8.219e-05,2]
[422832768,1779491440000,-500.0,8.219e-05,2]
[422832774,1779491440000,-500.0,8.219e-05,2]
[422832765,1779491440000,-500.0,8.219e-05,2]
[422832776,1779491440000,-6756.4,8.219e-05,2]
[422832784,1779491440000,-500.0,8.219e-05,2]
[422832775,1779491440000,-500.0,8.219e-05,2]
[422832786,1779491440000,-500.0,8.219e-05,2]
[422832787,1779491440000,-531.8,8.219e-05,2]
[422832785,1779491440000,-1372.96,8.219e-05,2]
[422832781,1779491440000,-2169.84,8.219e-05,2]
[422832783,1779491440000,-1773.17,8.219e-05,2]
[422832756,1779491440000,-500.0,8.219e-05,2]
[422832766,1779491440000,-1103.9,8.219e-05,2]
[422832755,1779491440000,-2800.73,8.219e-05,2]
[422832723,1779491440000,-500.0,8.219e-05,2]
[422832757,1779491440000,-500.0,8.219e-05,2]
[422832721,1779491440000,-708.81,8.219e-05,2]
[422832727,1779491440000,-500.0,8.219e-05,2]
[422832726,1779491440000,-815.85,8.219e-05,2]
[422832725,1779491440000,-500.0,8.219e-05,2]
[422832728,1779491440000,-500.0,8.219e-05,2]
[422832730,1779491440000,-1551.37,8.219e-05,2]
[422832731,1779491440000,-500.0,8.219e-05,2]
[422832729,1779491440000,-500.0,8.219e-05,2]
[422832733,1779491440000,-756.23,8.219e-05,2]
[422832741,1779491440000,-500.0,8.219e-05,2]
[422832743,1779491440000,-500.0,8.219e-05,2]
[422832742,1779491440000,-878.49,8.219e-05,2]
[422832746,1779491440000,-482.44703289,8.219e-05,2]
[422832752,1779491440000,-733.39,8.219e-05,2]
[422832744,1779491440000,-500.0,8.219e-05,2]
[422832745,1779491440000,-9255.89,8.219e-05,2]
[422832737,1779491440000,-50044.98,8.219e-05,2]
[422832738,1779491440000,-500.0,8.219e-05,2]
[422832777,1779491440000,-500.0,8.219e-05,2]
[422832739,1779491440000,-500.0,8.219e-05,2]
[422832740,1779491440000,-500.0,8.219e-05,2]
[422832736,1779491440000,-500.0,8.219e-05,2]
[422832748,1779491440000,-500.0,8.219e-05,2]
[422832747,1779491440000,-500.0,8.219e-05,2]
[422832759,1779491440000,-500.0,8.219e-05,2]
[422832758,1779491440000,-6607.12,8.219e-05,2]
[422832749,1779491440000,-2483.11,8.219e-05,2]
[422832760,1779491440000,-500.0,8.219e-05,2]
[422832732,1779491440000,-500.0,8.219e-05,2]
[422832778,1779491440000,-500.0,8.219e-05,2]
[422832734,1779491440000,-500.0,8.219e-05,2]
[422832780,1779491440000,-500.0,8.219e-05,2]